bitfinex-derivatives/quotes_ETHF0:USTF0_20251025
["timestamp","ask_amount","ask_price","bid_price","bid_amount"]
[1761429770549,1.36110111,3950.9,3950.8,0.7878]
[1761429772353,0.56421574,3950.9,3950.8,0.7878]
[1761429772649,1.36110111,3950.9,3950.8,0.7878]
[1761429772851,0.26,3950.5,3950.0,3.56111088]
[1761429773157,0.90951125,3950.2,3950.1,0.4399]
[1761429773645,1.47074333,3950.2,3950.1,0.4399]
[1761429773858,0.56123208,3950.2,3950.1,0.4399]
[1761429774045,0.56123208,3950.2,3950.1,8.89553]
[1761429774241,0.82673319,3950.7,3950.5,0.1347]
[1761429774447,4.51733319,3950.6,3950.5,0.3547]
[1761429774647,1.9309548,3950.6,3950.5,0.5746]
[1761429774855,0.56673319,3950.6,3950.5,0.9225]
[1761429775252,0.9094176,3950.6,3950.5,0.9225]
[1761429775555,0.9094176,3950.6,3950.5,0.5746]
[1761429775758,1.1514176,3950.6,3950.5,0.5746]
[1761429775951,1.3922176,3950.6,3950.5,0.9225]
[1761429776159,1.71815079,3950.6,3950.5,0.9225]
[1761429776456,0.56673319,3950.6,3950.5,0.9225]
[1761429776653,1.1514176,3950.7,3950.6,0.7878]
[1761429776855,1.71815941,3950.7,3950.6,0.7878]
[1761429780253,1.47615941,3950.7,3950.6,0.7878]
[1761429780557,0.56674181,3950.7,3950.6,0.7878]
[1761429780756,0.80014181,3950.7,3950.6,0.7878]
[1761429782054,1.26044181,3950.7,3950.6,0.3479]
[1761429782353,2.05792161,3950.7,3950.6,0.3479]
[1761429782552,2.62466342,3950.7,3950.6,0.3479]
[1761429782966,0.6937,3950.4,3950.3,0.5703]
[1761429783162,1.60310341,3950.4,3950.3,0.5703]
[1761429783464,2.16984522,3950.4,3950.3,0.5703]
[1761429783761,1.26044181,3950.4,3950.3,0.3379]
[1761429786354,1.26044181,3950.4,3950.0,0.00271088]
[1761429786355,0.6937,3950.1,3950.0,0.00271088]
[1761429786560,4.46824181,3950.1,3950.0,0.00271088]
[1761429786860,0.56674181,3950.1,3950.0,0.94121088]
[1761429787061,1.3646637,3950.1,3950.0,0.94121088]
[1761429787359,0.80014181,3950.1,3950.0,0.94121088]
[1761429787560,2.16480551,3950.1,3950.0,0.94121088]
[1761429787750,2.39170551,3950.1,3950.0,0.94121088]
[1761429787951,1.02704181,3950.1,3950.0,0.94121088]
[1761429788150,0.56674181,3950.1,3950.0,0.94121088]
[1761429788354,0.90951118,3950.3,3950.2,0.3393]
[1761429788554,0.90951118,3950.3,3950.0,0.14271088]
[1761429788555,0.6708,3950.5,3950.4,0.3393]
[1761429788755,0.6708,3950.5,3950.0,0.14271088]
[1761429788756,0.6708,3950.2,3950.1,0.3393]
[1761429788963,0.6708,3950.2,3950.1,0.5669]
[1761429788964,4.44539092,3950.2,3950.1,0.5669]
[1761429789171,1.00409092,3950.2,3950.1,0.7902]
[1761429789460,0.79089092,3950.2,3950.1,0.7902]
[1761429791761,1.23759092,3950.2,3950.1,0.5669]
[1761429792355,1.00409092,3950.2,3950.1,0.5669]
[1761429792555,1.00409092,3950.2,3950.1,0.7902]
[1761429796267,0.2335,3950.1,3950.0,0.00271088]
[1761429796456,4.44539092,3950.1,3950.0,0.00271088]
[1761429798767,5.81005462,3950.1,3950.0,0.00271088]
[1761429799162,4.44539092,3950.1,3950.0,0.00271088]
[1761429800256,5.80865896,3950.1,3950.0,0.00271088]
[1761429800760,4.44539092,3950.1,3950.0,0.00271088]
[1761429801160,5.80851521,3950.1,3950.0,0.00271088]
[1761429802171,5.80840947,3950.1,3950.0,0.00271088]
[1761429802470,4.44539092,3950.1,3950.0,0.00271088]
[1761429807274,5.12014508,3950.1,3950.0,0.70001088]
[1761429807469,4.44539092,3950.1,3950.0,0.00271088]
[1761429808173,0.2335,3950.0,3949.0,0.1306]
[1761429808372,0.6708,3949.1,3949.0,0.4699]
[1761429808674,1.23759092,3949.1,3949.0,0.6975]
[1761429809074,1.00409092,3949.1,3949.0,0.6975]
[1761429809265,1.00409092,3949.1,3949.0,0.70044654]
[1761429810676,1.23759092,3949.1,3949.0,0.70044654]
[1761429813670,1.23759092,3949.1,3949.0,0.00294654]
[1761429814678,2.59997216,3949.1,3949.0,0.00294654]
[1761429814874,1.23759092,3949.1,3949.0,0.00294654]
[1761429817384,2.14566126,3949.1,3949.0,0.00294654]
[1761429817883,1.91216126,3949.1,3949.0,0.92354654]
[1761429818388,1.00409092,3949.1,3949.0,0.92354654]
[1761429819379,0.56679092,3949.1,3949.0,0.92354654]
[1761429819776,1.02288133,3949.5,3949.4,0.5477]
[1761429820491,0.56908133,3949.5,3949.4,0.7621]
[1761429821083,1.25598133,3949.5,3949.4,0.7621]
[1761429821589,1.02288133,3949.5,3949.4,0.7621]
[1761429824796,1.25598133,3949.5,3949.4,0.7621]
[1761429825491,1.25598133,3949.5,3949.4,0.5477]
[1761429825801,0.6869,3949.1,3949.0,0.00294654]
[1761429825998,1.25598133,3949.1,3949.0,0.00294654]
[1761429826298,1.25598133,3949.1,3949.0,0.32634654]
[1761429828799,4.46378133,3949.1,3949.0,0.32634654]
[1761429829399,4.46378133,3949.1,3949.0,0.69154654]
[1761429829997,4.23068133,3949.1,3949.0,0.69154654]
[1761429830694,1.02288133,3949.1,3949.0,0.90594654]
[1761429834298,0.56908133,3949.1,3949.0,0.90594654]
[1761429834498,0.90932824,3949.2,3949.1,0.7621]
[1761429834800,1.13052824,3949.2,3949.1,0.7621]
[1761429835202,1.7007385,3949.2,3949.1,0.7621]
[1761429836605,0.57021026,3949.2,3949.1,0.7621]
[1761429836808,0.57021026,3949.2,3949.1,0.4387]
[1761429836998,0.90932824,3949.3,3949.1,0.4387]
[1761429837306,0.90932824,3949.3,3949.2,0.7621]
[1761429838100,1.13052824,3949.3,3949.2,0.7621]
[1761429838306,1.7007385,3949.3,3949.2,0.7621]
[1761429840909,0.79141026,3949.3,3949.2,0.7621]
[1761429841506,1.7007385,3949.3,3949.2,0.7621]
[1761429841708,1.4795385,3949.3,3949.2,0.7621]
[1761429842012,0.57021026,3949.3,3949.2,0.7712]
[1761429842204,0.90932824,3949.4,3949.3,0.3325]
[1761429842405,2.34391897,3950.5,3949.4,0.78821]
[1761429842406,0.57027279,3949.5,3949.4,0.78821]
[1761429842706,0.90932824,3950.1,3950.0,0.9104]
[1761429842910,0.90932824,3950.2,3950.0,0.5779]
[1761429843208,0.90932824,3950.3,3950.2,0.78]
[1761429843404,1.13652824,3950.3,3950.2,0.78]
[1761429843611,1.7063819,3950.3,3950.2,0.78]
[1761429845211,0.79705366,3950.3,3950.2,0.78]
[1761429848809,0.79657277,3950.3,3950.2,0.78]
[1761429849603,1.70590101,3950.3,3950.2,0.78]
[1761429850110,0.56937277,3950.3,3950.2,0.78]
[1761429852613,0.56937277,3950.3,3950.2,1.23562]
[1761429853115,4.20947277,3950.3,3950.2,0.78]
[1761429853606,0.78317277,3950.3,3950.2,0.78]
[1761429854909,0.56937277,3950.3,3950.2,0.78]
[1761429860110,3.2078,3950.7,3950.6,0.7825]
[1761429860311,3.77530598,3950.7,3950.6,0.7825]
[1761429861517,0.56750598,3950.7,3950.6,0.7825]
[1761429862722,0.00298366,3950.9,3950.8,0.7825]
[1761429863111,0.57044619,3950.9,3950.8,0.7825]
[1761429872623,0.00298366,3950.9,3950.8,8.7825]
[1761429877929,0.00298366,3950.9,3950.8,17.7485]
[1761429882033,1.14222824,3951.8,3950.9,0.3398]
[1761429882234,1.92532721,3951.7,3951.6,0.5626]
[1761429882533,0.56759897,3951.7,3951.6,0.7865]
[1761429882730,0.79159897,3951.7,3951.6,0.7865]
[1761429882933,1.01599897,3951.7,3951.6,0.7865]
[1761429883134,1.0185412,3951.7,3951.6,0.7865]
[1761429884136,1.92786944,3951.7,3951.6,0.7865]
[1761429884837,1.0185412,3951.7,3951.6,0.7865]
[1761429885230,1.92786944,3951.7,3951.6,0.7865]
[1761429886734,0.7941412,3951.7,3951.6,0.7865]
[1761429889534,1.0185412,3951.7,3951.6,0.7865]
[1761429889838,2.16106944,3951.7,3951.6,0.5626]
[1761429891534,1.2517412,3951.7,3951.6,0.3398]
[1761429892342,1.2517412,3951.7,3951.6,0.5626]
[1761429893145,1.2517412,3951.7,3951.6,0.3398]
[1761429894638,0.224,3951.5,3951.4,0.3398]
[1761429894943,1.59158701,3951.5,3951.4,0.3398]
[1761429895136,2.15918598,3951.5,3951.4,0.3398]
[1761429897635,2.16040417,3951.5,3951.4,0.3398]
[1761429899540,1.25041716,3951.5,3951.4,0.3398]
[1761429900433,2.6127984,3951.5,3951.4,0.3398]
[1761429901742,2.6127984,3951.5,3951.4,0.5714]
[1761429905140,2.6127984,3951.5,3951.3,8.955]
[1761429905443,1.25661716,3951.4,3951.3,8.955]
[1761429907047,4.46441716,3951.4,3951.3,8.955]
[1761429907234,4.46441716,3951.4,3951.1,0.3511]
[1761429907235,0.2331,3951.3,3951.1,0.3511]
[1761429907441,0.6878,3950.9,3950.8,0.3511]
[1761429907741,1.25661716,3950.9,3950.8,0.3511]
[1761429908444,0.2334,3950.8,3950.7,0.3434]
[1761429908641,0.6706,3950.7,3950.6,6.3804]
[1761429908841,2.03665749,3950.7,3950.6,6.3804]
[1761429909040,2.60547465,3950.7,3950.6,6.3804]
[1761429909339,1.23941716,3950.7,3950.6,6.3804]
[1761429909536,0.6706,3950.2,3950.1,0.3434]
[1761429909843,1.23941716,3950.2,3950.1,0.3434]
[1761429912147,1.23941716,3950.2,3950.1,0.5785]
[1761429912341,0.56881716,3950.2,3950.1,0.8064]
[1761429912645,0.56881716,3950.2,3950.1,0.463]
[1761429913041,0.56881716,3950.2,3950.1,0.8064]
[1761429913646,0.78601716,3950.2,3950.1,0.8064]
[1761429915543,0.56881716,3950.2,3950.1,0.8064]
[1761429918447,0.56881716,3950.2,3950.1,4.0142]
[1761429919838,0.56881716,3950.2,3950.1,0.8064]
[1761429922154,0.56881716,3950.2,3950.0,3.79374]
[1761429922155,0.6706,3950.9,3950.8,0.5785]
[1761429922352,1.23759095,3950.9,3950.8,0.5785]
[1761429923153,1.23759095,3950.9,3950.8,0.3434]
[1761429923356,2.14778826,3950.9,3950.8,0.3434]
[1761429925660,5.35558826,3950.9,3950.8,0.3434]
[1761429927454,0.4372,3950.7,3950.6,0.3434]
[1761429927654,1.23759095,3950.7,3950.6,0.3434]
[1761429929362,1.23759095,3950.7,3950.6,0.5785]
[1761429932279,2.14778826,3950.7,3950.6,0.5785]
[1761429932669,1.91438826,3950.7,3950.6,0.8064]
[1761429932977,1.00419095,3950.7,3950.6,0.8064]
[1761429934477,1.91438826,3950.7,3950.6,0.8064]
[1761429936475,1.00419095,3950.7,3950.6,0.8064]
[1761429937072,1.23759095,3950.7,3950.6,0.8064]
[1761429937568,2.60364844,3950.7,3950.6,0.8064]
[1761429939481,2.60364844,3950.7,3950.6,0.5785]
[1761429939680,1.23759095,3950.7,3950.6,0.5785]
[1761429943572,1.00419095,3950.7,3950.6,0.7921]
[1761429945583,1.23699095,3950.7,3950.6,0.7921]
[1761429949790,2.03688894,3950.7,3950.6,0.7921]
[1761429949990,2.60387989,3950.7,3950.6,0.7921]
[1761429951284,1.23699095,3950.7,3950.6,0.7921]
[1761429952487,1.00419095,3950.7,3950.6,0.7921]
[1761429952688,1.80419752,3950.7,3950.6,0.7921]
[1761429952986,2.37118847,3950.7,3950.6,0.7921]
[1761429956192,1.93398847,3950.7,3950.6,0.7921]
[1761429956492,1.36699752,3951.0,3950.9,0.3215]
[1761429956698,1.93755433,3951.0,3950.9,0.7601]
[1761429956897,2.16275433,3951.0,3950.9,0.7601]
[1761429957298,0.79575681,3951.0,3950.9,0.7601]
[1761429959896,1.70631605,3951.0,3950.9,0.7601]
[1761429960402,0.57015962,3951.0,3950.9,0.7784]
[1761429981912,0.57015962,3951.0,3950.9,3.9862]
[1761429982615,0.57015962,3951.0,3950.9,0.7784]
[1761429983113,0.57015962,3951.0,3950.9,3.9862]
[1761429984413,0.57015962,3951.0,3950.9,0.7784]
[1761429984610,0.57015962,3951.0,3950.9,3.9862]
[1761429991420,0.57015962,3951.0,3950.9,0.7784]
[1761429992020,0.57015962,3951.0,3950.9,3.9862]
[1761429992215,0.79125962,3951.0,3950.9,3.9862]
[1761429993321,0.57015962,3951.0,3950.9,3.9862]
[1761429997020,0.57015962,3951.0,3950.9,0.7784]
[1761429997222,0.57015962,3951.0,3950.9,3.9862]
[1761429998621,0.57015962,3951.0,3950.9,0.7784]
[1761429999423,0.57015962,3951.0,3950.9,3.9862]
[1761430000326,0.57015962,3951.0,3950.9,0.7784]
[1761430000916,0.57015962,3951.0,3950.9,3.9862]
[1761430005928,0.57015962,3951.0,3950.9,0.7784]
[1761430006129,0.57015962,3951.0,3950.9,3.9862]
[1761430006430,0.57015962,3951.0,3950.9,0.7784]
[1761430006631,0.57015962,3951.0,3950.9,3.9862]
[1761430008031,0.57015962,3951.0,3950.9,0.7784]
[1761430008333,0.57015962,3951.0,3950.9,3.9862]
[1761430009026,0.57015962,3951.0,3950.9,0.7784]
[1761430009224,0.57015962,3951.0,3950.9,3.9862]
[1761430011233,0.57015962,3951.0,3950.9,12.9132]
[1761430012130,0.57015962,3951.0,3950.9,9.7054]
[1761430012332,0.57015962,3951.0,3950.9,12.9132]
[1761430012727,0.57015962,3951.0,3950.9,9.7054]
[1761430012932,0.57015962,3951.0,3950.9,12.9132]
[1761430013135,0.91310147,3951.7,3951.6,0.7973]
[1761430013429,1.14120147,3951.7,3951.6,9.7243]
[1761430019140,0.23064223,3951.7,3951.6,9.7243]
[1761430019840,1.14120147,3951.7,3951.6,9.7243]
[1761430021742,0.91310147,3951.7,3951.6,9.7243]
[1761430022341,0.00254223,3951.7,3951.6,9.7243]
[1761430023145,0.43444223,3951.7,3951.6,9.7243]
[1761430023438,0.22274223,3951.7,3951.6,9.7243]
[1761430023644,0.00254223,3951.7,3951.6,9.7243]
[1761430024740,0.00254223,3951.7,3951.6,12.9321]
[1761430025244,0.56806665,3951.7,3951.6,12.9321]
[1761430025548,0.56806665,3951.7,3951.6,12.9301]
[1761430034347,0.56806665,3951.7,3951.6,9.7223]
[1761430034642,0.56806665,3951.7,3951.6,12.9301]
[1761430035048,0.56806665,3951.7,3951.6,9.7223]
[1761430035248,0.56806665,3951.7,3951.6,12.9301]
[1761430049151,0.91055924,3952.3,3951.6,13.72265]
[1761430049357,0.91055924,3952.4,3952.3,0.7705]
[1761430049654,0.91055924,3952.4,3952.3,9.6925]
[1761430050149,0.91321722,3952.4,3952.3,9.69438822]
[1761430051549,0.00265798,3952.4,3952.3,9.69438822]
[1761430055961,0.00265798,3952.4,3952.3,12.90218822]
[1761430057568,0.00265798,3952.4,3952.3,9.69438822]
[1761430057759,0.00265798,3952.4,3952.3,12.90218822]
[1761430059163,0.91055924,3953.2,3952.3,13.70952822]
[1761430059467,3.2078,3953.6,3952.3,13.70952822]
[1761430059468,0.2291,3953.3,3953.2,0.7848]
[1761430059669,0.2291,3953.3,3953.2,9.7048]
[1761430060268,0.23161068,3953.3,3953.2,9.7048]
[1761430061170,0.79269643,3953.3,3953.2,9.7048]
[1761430062671,0.56359643,3953.3,3953.2,9.7048]
[1761430065372,0.00251068,3953.3,3953.2,9.7048]
[1761430065568,0.55871571,3953.3,3953.2,9.7048]
[1761430067165,0.00251068,3953.3,3953.2,9.7048]
[1761430077570,0.55880499,3953.3,3953.2,9.7048]
[1761430089082,0.55880499,3953.3,3953.2,12.9126]
[1761430092796,0.55880499,3953.3,3953.2,9.7048]
[1761430096390,0.77430499,3953.3,3953.2,9.7048]
[1761430097292,1.23890499,3953.3,3953.2,0.7848]
[1761430097492,0.4646,3953.0,3952.9,0.3497]
[1761430097696,1.23639431,3953.0,3952.9,7.9857]
[1761430097893,1.23639431,3953.0,3952.9,8.215]
[1761430098100,1.00409431,3953.0,3952.9,8.4318]
[1761430098293,1.68198392,3953.0,3952.9,8.4318]
[1761430099302,0.77179431,3953.0,3952.9,8.4318]
[1761430099696,1.00409431,3953.0,3952.9,8.4318]
[1761430100001,2.14658392,3953.0,3952.9,8.4318]
[1761430100303,1.23639431,3953.0,3952.9,8.4318]
[1761430101400,1.00409431,3953.0,3952.9,8.4318]
[1761430101598,0.55629431,3953.0,3952.9,8.4318]
[1761430101904,0.4478,3953.0,3952.9,8.4318]
[1761430102106,1.00409431,3953.0,3952.9,8.4318]
[1761430106204,1.23639431,3953.0,3952.9,8.4318]
[1761430106504,1.00409431,3953.0,3952.9,8.4318]
[1761430109803,0.77179431,3953.0,3952.9,8.4318]
[1761430113110,4.44419431,3953.0,3952.9,8.4318]
[1761430114411,1.23639431,3953.0,3952.9,8.4318]
[1761430117110,1.00409431,3953.0,3952.9,8.4318]
[1761430117705,0.2155,3952.7,3952.6,0.3497]
[1761430117910,4.33348961,3952.7,3952.6,0.7958]
[1761430118210,0.55629431,3952.7,3952.6,0.7958]
[1761430118411,0.55629431,3952.7,3952.6,0.4461]
[1761430118606,1.13868961,3952.8,3952.6,0.4461]
[1761430118813,0.55629431,3952.7,3952.6,0.4461]
[1761430119016,0.91018961,3952.8,3952.6,0.4461]
[1761430119310,0.55629431,3952.7,3952.6,0.4461]
[1761430119514,0.2285,3952.7,3952.6,0.7761]
[1761430119710,1.69498392,3952.7,3952.6,0.7761]
[1761430120920,2.13958392,3952.7,3952.6,0.7761]
[1761430121519,1.22939431,3952.7,3952.6,0.7761]
[1761430121720,0.99679431,3952.7,3952.6,0.7761]
[1761430122419,1.22939431,3952.7,3952.6,0.7761]
[1761430125215,0.99679431,3952.7,3952.6,0.7761]
[1761430126822,1.22939431,3952.7,3952.6,0.33]
[1761430127121,2.59562464,3952.7,3952.6,0.33]
[1761430127611,0.6731,3952.5,3952.4,0.33]
[1761430127811,1.22939431,3952.5,3952.4,0.33]
[1761430128017,1.22939431,3952.5,3952.3,0.33188822]
[1761430128018,0.2326,3952.4,3952.3,0.33188822]
[1761430128323,2.03739453,3952.4,3952.3,0.33188822]
[1761430128522,2.59368884,3952.4,3952.3,0.33188822]
[1761430128714,2.59368884,3952.4,3952.3,0.00188822]
[1761430129517,9.22939431,3952.4,3952.3,0.33188822]
[1761430129713,10.593407,3952.4,3952.3,0.33188822]
[1761430134123,13.801207,3952.4,3952.3,0.33188822]
[1761430134426,12.43719431,3952.4,3952.3,0.33188822]
[1761430135828,9.22939431,3952.4,3952.3,0.33188822]
[1761430136220,12.43719431,3952.4,3952.3,0.33188822]
[1761430137227,4.20459431,3952.4,3952.3,0.75938822]
[1761430137828,0.99679431,3952.4,3952.3,0.75938822]
[1761430138026,4.20459431,3952.4,3952.3,0.75938822]
[1761430138425,0.99679431,3952.4,3952.3,0.75938822]
[1761430138627,4.20459431,3952.4,3952.3,0.75938822]
[1761430140618,0.99679431,3952.4,3952.3,0.75938822]
[1761430145032,1.90566393,3952.4,3952.3,0.75938822]
[1761430145327,0.99679431,3952.4,3952.3,0.75938822]
[1761430145719,0.90900885,3952.4,3952.3,0.75938822]
[1761430145925,1.46530316,3952.4,3952.3,0.75938822]
[1761430146124,0.55629431,3952.4,3952.3,0.75398822]
[1761430146336,0.90900885,3952.4,3952.3,0.75398822]
[1761430149730,1.58661269,3952.6,3952.5,0.1307]
[1761430149928,2.142907,3952.6,3952.5,0.9246]
[1761430150325,2.374107,3952.6,3952.5,0.9246]
[1761430151138,1.01009431,3952.6,3952.5,0.9246]
[1761430155831,1.81893621,3952.6,3952.5,0.9246]
[1761430156031,2.37523052,3952.6,3952.5,0.9246]
[1761430159535,1.92143052,3952.6,3952.5,0.9246]
[1761430159837,0.55629431,3952.6,3952.5,0.9246]
[1761430160137,1.92576506,3952.8,3952.6,0.7939]
[1761430160333,1.58757679,3952.8,3952.7,0.7939]
[1761430160540,1.9255511,3952.8,3952.7,0.7939]
[1761430161640,2.1481511,3952.8,3952.7,0.7939]
[1761430162639,0.78317431,3952.8,3952.7,0.7939]
[1761430164438,0.56057431,3952.8,3952.7,0.7939]
[1761430164632,1.47024091,3952.8,3952.7,0.7939]
[1761430166640,0.56057431,3952.8,3952.7,0.7939]
[1761430186449,0.56057431,3952.8,3952.7,4.0017]
[1761430189048,0.56057431,3952.8,3952.7,0.7939]
[1761430189351,0.56057431,3952.8,3952.7,4.0017]
[1761430192855,0.00251068,3953.3,3953.2,1.26387]
[1761430193056,0.00251068,3953.3,3953.2,10.17087]
[1761430198959,0.00251068,3953.3,3953.2,9.7156]
[1761430205458,0.55735279,3953.3,3953.2,9.7156]
[1761430207755,0.55735279,3953.3,3953.2,12.9234]
[1761430211161,0.55735279,3953.3,3953.2,9.7156]
[1761430211651,0.55735279,3953.3,3953.2,12.9234]
[1761430213455,0.55735279,3953.3,3953.2,9.7156]
[1761430213860,0.55735279,3953.3,3953.2,12.9234]
[1761430215066,0.55735279,3953.3,3953.2,9.7156]
[1761430215263,0.55735279,3953.3,3953.2,12.9234]
[1761430215957,0.55735279,3953.3,3953.2,9.7156]
[1761430216159,0.55735279,3953.3,3953.2,12.9234]
[1761430221072,0.55735279,3953.3,3953.2,9.7156]
[1761430221374,0.55735279,3953.3,3953.2,12.9234]
[1761430227272,1.00825279,3953.3,3953.0,0.1332]
[1761430227575,0.7714,3952.4,3952.3,0.00188822]
[1761430227776,1.6821923,3952.4,3952.3,0.00188822]
[1761430228072,5.90023056,3952.4,3952.3,0.00188822]
[1761430228276,1.32624211,3952.4,3952.3,0.00188822]
[1761430229676,2.23574716,3952.4,3952.3,0.00188822]
[1761430230272,1.32624211,3952.4,3952.3,0.00188822]
[1761430231171,2.23406526,3952.4,3952.3,0.00188822]
[1761430232379,1.32624211,3952.4,3952.3,0.00188822]
[1761430233076,4.53404211,3952.4,3952.3,0.00188822]
[1761430234072,1.32624211,3952.4,3952.3,0.00188822]
[1761430234680,4.53404211,3952.4,3952.3,0.00188822]
[1761430234977,12.53404211,3952.4,3952.3,0.00188822]
[1761430237169,9.32624211,3952.4,3952.3,0.00188822]
[1761430237481,12.53404211,3952.4,3952.3,0.00188822]
[1761430237773,9.32624211,3952.4,3952.3,0.00188822]
[1761430240675,12.53404211,3952.4,3952.3,0.00188822]
[1761430240982,9.32624211,3952.4,3952.3,0.00188822]
[1761430241178,12.53404211,3952.4,3952.3,0.00188822]
[1761430244578,9.32624211,3952.4,3952.3,0.00188822]
[1761430244784,12.53404211,3952.4,3952.3,0.00188822]
[1761430247081,9.32624211,3952.4,3952.3,0.00188822]
[1761430247283,12.53404211,3952.4,3952.3,0.00188822]
[1761430247977,4.21354211,3952.4,3951.4,0.45548]
[1761430248179,0.7799,3951.0,3950.9,1.26044]
[1761430248377,0.5548,3951.0,3950.9,1.26044]
[1761430248972,0.7799,3951.0,3950.9,0.57827221]
[1761430249177,0.9169,3951.0,3950.9,0.00207221]
[1761430249874,0.9169,3951.0,3950.9,0.57827221]
[1761430251086,0.9169,3951.0,3950.9,0.80697221]
[1761430251286,0.7799,3951.0,3950.9,0.80697221]
[1761430254678,1.50318845,3952.0,3951.4,0.4555]
[1761430254679,0.3427,3951.7,3951.4,0.4555]
[1761430254884,0.5548,3951.7,3951.6,0.8049]
[1761430255285,0.7799,3951.7,3951.6,0.8049]
[1761430256087,1.34135039,3951.7,3951.6,0.8049]
[1761430278113,1.36135039,3951.7,3951.6,0.8049]
[1761430279113,0.9046,3951.5,3951.4,3.7549]
[1761430279306,1.46605039,3951.5,3951.4,3.7549]
[1761430280014,1.46605039,3951.5,3951.4,3.9763]
[1761430280515,1.46605039,3951.5,3951.4,0.7685]
[1761430284016,1.46605039,3951.5,3951.4,0.5471]
[1761430284317,0.4271,3951.3,3951.2,1.0026]
[1761430284525,1.33235039,3951.3,3951.2,1.0026]
[1761430285215,1.33235039,3951.3,3951.2,0.5471]
[1761430286217,0.7709,3951.2,3951.1,0.67212]
[1761430286417,1.33235039,3951.2,3951.1,0.67212]
[1761430286720,1.33235039,3951.2,3951.1,1.00262]
[1761430289022,1.33235039,3951.2,3951.1,0.2166]
[1761430289221,0.9046,3951.0,3950.9,0.54917221]
[1761430289422,1.46605039,3951.0,3950.9,0.54917221]
[1761430289922,1.46605039,3951.0,3950.9,0.21867221]
[1761430291523,1.46605039,3951.0,3950.9,0.54917221]
[1761430296330,1.46605039,3951.0,3950.9,0.77057221]
[1761430301829,1.33235039,3951.0,3950.9,0.77057221]
[1761430304931,1.12015039,3951.0,3950.9,0.77057221]
[1761430305139,0.5626,3951.3,3951.2,0.4278]
[1761430305326,1.12616357,3951.3,3951.2,0.7745]
[1761430305529,1.33906357,3951.3,3951.2,0.7745]
[1761430310635,0.56356357,3951.3,3951.2,0.7745]
[1761430310843,0.2318,3951.6,3951.5,1.22997]
[1761430311237,1.00844241,3951.6,3951.5,1.22997]
[1761430311438,1.33924241,3951.6,3951.5,1.22997]
[1761430317148,1.33924241,3951.6,3951.5,0.7745]
[1761430317345,1.33924241,3951.6,3951.5,0.562]
[1761430318249,0.7755,3951.4,3951.3,3.2078]
[1761430318448,0.7755,3951.4,3951.3,3.7698]
[1761430318748,1.33924241,3951.4,3951.3,3.7698]
[1761430320151,1.33924241,3951.4,3951.3,0.562]
[1761430321644,1.33924241,3951.4,3951.3,0.2153]
[1761430325352,0.4314,3951.2,3951.1,0.5585]
[1761430325651,0.8908,3951.0,3950.9,0.56057221]
[1761430329256,0.8908,3951.0,3950.9,0.77477221]
[1761430329456,0.7584,3951.0,3950.9,0.77477221]
[1761430334563,0.5453,3951.4,3951.3,1.23029]
[1761430334859,1.32970439,3951.4,3951.3,1.23029]
[1761430336961,1.32970439,3951.4,3951.3,4.43809]
[1761430340661,1.32970439,3951.4,3951.3,1.23029]
[1761430344763,0.79150439,3951.4,3951.3,1.23029]
[1761430345563,1.11010439,3951.4,3951.3,1.23029]
[1761430346566,1.11010439,3951.4,3951.3,4.43809]
[1761430349570,1.11010439,3951.4,3951.3,1.23029]
[1761430349765,1.11010439,3951.4,3951.3,4.43809]
[1761430350167,1.11010439,3951.4,3951.3,1.23029]
[1761430350471,1.11010439,3951.4,3951.3,4.43809]
[1761430352072,1.11010439,3951.4,3951.3,1.23029]
[1761430352475,1.11010439,3951.4,3951.3,4.43809]
[1761430352777,1.32970439,3951.4,3951.3,4.43809]
[1761430353577,1.32970439,3951.4,3951.3,1.23029]
[1761430353876,1.32970439,3951.4,3951.3,4.43809]
[1761430358081,1.32970439,3951.4,3951.3,3.9826]
[1761430362182,1.32970439,3951.4,3951.3,0.7748]
[1761430369591,1.32970439,3951.4,3951.3,3.9826]
[1761430370691,1.32970439,3951.4,3951.3,0.7748]
[1761430381197,0.3214,3951.3,3951.2,9.3605]
[1761430381400,0.88620439,3951.3,3951.2,9.3605]
[1761430381597,1.34150439,3951.3,3951.2,10.1604]
[1761430383702,1.34150439,3951.3,3951.0,4.91260994]
[1761430384013,0.1371,3951.5,3950.9,0.00207221]
[1761430384014,0.9138,3951.0,3950.9,0.00207221]
[1761430384299,1.47860439,3951.0,3950.9,0.00207221]
[1761430393706,1.47860439,3951.0,3950.9,0.56127221]
[1761430393909,1.47860439,3951.0,3950.9,0.77817221]
[1761430400206,1.34150439,3951.0,3950.9,0.77817221]
[1761430400512,1.34150439,3951.0,3950.9,3.98597221]
[1761430402120,1.34150439,3951.0,3950.9,0.77817221]
[1761430404118,1.47080439,3951.0,3950.9,0.77817221]
[1761430416426,2.37862754,3951.0,3950.9,0.77817221]
[1761430416828,1.47080439,3951.0,3950.9,0.77817221]
[1761430417524,2.37862754,3951.0,3950.9,0.77817221]
[1761430417726,1.47080439,3951.0,3950.9,0.77817221]
[1761430417927,2.37862754,3951.0,3950.9,0.77817221]
[1761430418130,2.37862754,3951.0,3950.9,0.56127221]
[1761430418322,2.37862754,3951.0,3950.9,0.23037221]
[1761430419129,2.37862754,3951.0,3950.9,0.00207221]
[1761430426637,4.67860439,3951.0,3950.9,0.00207221]
[1761430427233,1.47080439,3951.0,3950.9,0.00207221]
[1761430432742,4.67860439,3951.0,3950.9,0.00207221]
[1761430438856,1.47080439,3951.0,3950.9,0.00207221]
[1761430439155,4.67860439,3951.0,3950.9,0.00207221]
[1761430442058,1.47080439,3951.0,3950.9,0.00207221]
[1761430445055,1.46809383,3951.0,3950.9,0.00207221]
[1761430448055,2.37913727,3951.0,3950.9,0.00207221]
[1761430448448,1.46809383,3951.0,3950.9,0.00207221]
[1761430456672,1.46809383,3951.0,3950.9,0.00035456]
[1761430461379,1.46950652,3951.0,3950.9,0.00035456]
[1761430476680,2.38098432,3951.0,3950.9,0.54175456]
[1761430476976,2.38098432,3951.0,3950.9,0.21855456]
[1761430477175,2.38098432,3951.0,3950.9,0.00035456]
[1761430477176,2.05958432,3951.0,3950.9,0.00035456]
[1761430480279,1.14810652,3951.0,3950.9,0.00035456]
[1761430487387,2.0593632,3951.0,3950.9,0.55315456]
[1761430487878,2.4004632,3951.0,3950.9,0.55315456]
[1761430489992,2.4004632,3951.0,3950.9,0.76775456]
[1761430490992,2.4004632,3951.0,3950.9,0.55315456]